[Event "Polish Youth 1st League 2022"]
[Site "Lublin"]
[Date "2022.07.01"]
[Round "7.11"]
[White "Bugaj, Hanna"]
[Black "Barwinska, Ewa"]
[Result "0-1"]
[ECO "B22"]
[WhiteElo "1779"]
[BlackElo "1825"]
[Annotator "NA RC"]
[PlyCount "76"]
[EventDate "2022.06.24"]
[EventType "team-tourn"]
[EventCountry "POL"]
[SourceTitle "playchess.com"]
[Source "ChessBase"]
[SourceQuality "1"]
[TimeControl "40/5400+30:1800+30"]

1. e4 {[%emt 0:00:04]} c5 {[%emt 0:00:15]} 2. c3 {[%emt 0:00:08]} Nf6 {[%emt 0:00:54]} 3. e5 {[%emt 0:00:15]} Nd5 {[%emt 0:00:09]} 4. Nf3 {[%emt 0:00:14]} Nc6 {[%emt 0:03:47]} 5. Bc4 {[%emt 0:00:34]} Nb6 {[%emt 0:06:40]} 6. Bb3 {[%emt 0:00:16]} c4 {[%emt 0:03:43]} 7. Bc2 {[%emt 0:00:11]} d6 {[%emt 0:02:40]} 8. exd6 {[%emt 0:02:18]} Qxd6 {[%emt 0:00:24]} 9. O-O {[%emt 0:01:20]} Bg4 {[%emt 0:03:48]} 10. h3 {[%emt 0:04:00]} Bh5 {[%emt 0:01:56]} 11. b3 {[%emt 0:02:43]} e6 {[%emt 0:20:21]} ({Black should try} 11... Qd5 $11 12. bxc4 Nxc4) 12. Na3 {[%emt 0:08:47]} cxb3 {[%emt 0:12:07]} (12... Ne5 $5 {[%cal Rd6d5]} 13. Nxc4 Nxf3+ 14. Qxf3 Bxf3 15. Nxd6+ Bxd6 16. gxf3 Nd5 $14) 13. axb3 {[%emt 0:00:14]} Be7 {[%emt 0:01:25]} 14. d4 {[%emt 0:08:50]} O-O {[%emt 0:01:34]} 15. Re1 {[%emt 0:02:08]} Nd5 {[%emt 0:04:49]} 16. Bd2 {[%emt 0:13:19]} a6 {[%emt 0:02:37]} 17. g4 {[%emt 0:07:29]} Bg6 {[%emt 0:00:43]} 18. Nc4 {[%emt 0:00:53]} Qc7 {[%emt 0:00:56]} 19. Bxg6 {[%emt 0:16:38]} hxg6 {[%emt 0:00:11]} 20. Re4 $11 {[%emt 0:07:10]} (20. Qe2 $142) 20... b5 {[%emt 0:04:19]} 21. Nb2 {[%emt 0:00:41]} Rfd8 {[%emt 0:01:48]} 22. Nd3 {[%emt 0:02:38]} Nf6 {[%emt 0:01:54]} 23. Re1 {[%emt 0:01:21]} b4 {[%emt 0:03:19]} 24. Rc1 {[%emt 0:02:55]} bxc3 {[%emt 0:03:31]} 25. Bxc3 {[%emt 0:02:56]} Qb6 {[%emt 0:01:26]} 26. Nde5 {[%emt 0:03:13]} Nxe5 {[%emt 0:03:06]} 27. Nxe5 {[%emt 0:00:32]} Nd5 {[%emt 0:02:01]} 28. Qf3 {[%emt 0:04:48]} (28. Bd2 $1 $15) 28... Bf6 {[%emt 0:02:15]} 29. Ba1 {[%emt 0:00:53]} Bxe5 {[%emt 0:03:27]} 30. dxe5 {[%emt 0:00:34]} Rab8 {[%emt 0:00:17]} 31. Rb1 {[%emt 0:01:17]} g5 {[%emt 0:02:26]} 32. Bc3 {[%emt 0:03:07]} Nf4 {[%emt 0:01:13]} 33. Re3 {[%emt 0:00:29]} Rd7 {[%emt 0:01:42]} 34. Ra1 {[%emt 0:02:58]} Qxb3 {[%emt 0:02:18]} 35. Rxa6 {[%emt 0:00:55]} Qd1+ {[%emt 0:02:07]} 36. Qxd1 {[%emt 0:00:49]} Rxd1+ {[%emt 0:00:04]} 37. Re1 {[%emt 0:00:18]} Ne2+ {[%emt 0:00:16]} 38. Kh2 {[%emt 0:00:34]} Nxc3 {[%emt 0:00:10]} 0-1

[Event "Polish Youth 1st League 2022"]
[Site "Lublin"]
[Date "2022.07.01"]
[Round "7.12"]
[White "Matuszewska, Kinga"]
[Black "Sprzeczka, Emilia"]
[Result "0-1"]
[ECO "B50"]
[WhiteElo "1085"]
[BlackElo "1692"]
[Annotator "NA RC"]
[PlyCount "72"]
[EventDate "2022.06.24"]
[EventType "team-tourn"]
[EventCountry "POL"]
[SourceTitle "playchess.com"]
[Source "ChessBase"]
[SourceQuality "1"]
[TimeControl "40/5400+30:1800+30"]

1. e4 {[%emt 0:00:02]} c5 {[%emt 0:00:09]} 2. Nf3 {[%emt 0:00:09]} d6 {[%emt 0:00:08]} 3. c3 {[%emt 0:00:11]} Nf6 {[%emt 0:00:59]} 4. Bd3 {[%emt 0:00:11]} Bg4 {[%emt 0:01:37]} 5. O-O {[%emt 0:06:34]} Nc6 {[%emt 0:03:19]} 6. Bc2 {[%emt 0:10:40]} e5 {[%emt 0:03:48]} 7. d3 {[%emt 0:07:30]} Be7 {[%emt 0:03:44]} 8. Be3 {[%emt 0:07:44]} O-O {[%emt 0:03:52]} 9. Nbd2 {[%emt 0:05:11]} d5 {[%emt 0:07:05]} 10. exd5 {[%emt 0:06:04]} Nxd5 {[%emt 0:02:31]} 11. h3 {[%emt 0:03:46]} Bh5 {[%emt 0:01:09]} 12. g4 {[%emt 0:08:01]} Bg6 {[%emt 0:00:19]} 13. d4 {[%emt 0:01:31]} exd4 {[%emt 0:02:27]} 14. cxd4 {[%emt 0:01:31]} Bxc2 {[%emt 0:02:45]} 15. Qxc2 {[%emt 0:00:09]} cxd4 {[%emt 0:05:27]} 16. Nxd4 {[%emt 0:10:37]} Nxe3 {[%emt 0:00:24]} 17. fxe3 {[%emt 0:00:14]} Nxd4 {[%emt 0:00:11]} 18. exd4 {[%emt 0:00:11]} Qxd4+ {[%emt 0:00:07]} 19. Kg2 {[%emt 0:00:38]} Rac8 {[%emt 0:00:52]} 20. Qd1 {[%emt 0:02:54]} Rfd8 {[%emt 0:02:18]} 21. Rf2 {[%emt 0:04:08]} Bh4 {[%emt 0:06:09]} 22. Re2 {[%emt 0:02:09]} Qf4 {[%emt 0:06:00]} 23. Qf1 {[%emt 0:03:25]} Qg3+ {[%emt 0:01:15]} 24. Kh1 {[%emt 0:00:17]} Rd3 {[%emt 0:03:15]} 25. Nc4 {[%emt 0:04:07]} Qxh3+ {[%emt 0:01:02]} 26. Qxh3 {[%emt 0:01:17]} Rxh3+ {[%emt 0:00:08]} 27. Kg2 {[%emt 0:00:21]} Rg3+ {[%emt 0:00:27]} 28. Kh2 {[%emt 0:00:22]} h6 {[%emt 0:05:03]} 29. Re4 {[%emt 0:05:53]} Rd3 {[%emt 0:02:01]} 30. b3 {[%emt 0:03:43]} b5 {[%emt 0:01:23]} 31. Ne3 {[%emt 0:01:02]} Rcc3 {[%emt 0:02:55]} 32. Nf1 {[%emt 0:02:07]} Rc2+ {[%emt 0:01:41]} 33. Kg1 {[%emt 0:01:44]} Bf2+ {[%emt 0:00:32]} 34. Kh1 {[%emt 0:00:30]} Bb6 {[%emt 0:00:47]} 35. Rae1 {[%emt 0:01:54]} Rh3+ {[%emt 0:00:08]} 36. Nh2 {[%emt 0:00:05]} Rcxh2# {[%emt 0:00:07]} 0-1

[Event "Polish Youth 1st League 2022"]
[Site "Lublin"]
[Date "2022.07.01"]
[Round "7.13"]
[White "Wieczorek, Mikolaj"]
[Black "Kania, Dominik"]
[Result "0-1"]
[ECO "B07"]
[WhiteElo "1942"]
[BlackElo "1872"]
[Annotator "RC"]
[PlyCount "98"]
[EventDate "2022.06.24"]
[EventType "team-tourn"]
[EventCountry "POL"]
[SourceTitle "playchess.com"]
[Source "ChessBase"]
[SourceQuality "1"]
[TimeControl "40/5400+30:1800+30"]

1. d4 {[%emt 0:00:14]} d6 {[%emt 0:00:44]} 2. e4 {[%emt 0:00:35]} Nf6 {[%emt 0:00:13]} 3. Nc3 {[%emt 0:00:03]} e5 {[%emt 0:00:05]} 4. dxe5 {[%emt 0:01:11]} dxe5 {[%emt 0:00:06]} 5. Qxd8+ {[%emt 0:00:03]} Kxd8 {[%emt 0:00:08]} 6. Bc4 {[%emt 0:00:03]} Be6 {[%emt 0:01:37]} 7. Bxe6 {[%emt 0:00:41]} fxe6 {[%emt 0:00:06]} 8. f3 {[%emt 0:00:02]} Bc5 {[%emt 0:06:10]} 9. Nh3 {[%emt 0:08:57]} Nc6 {[%emt 0:03:28]} 10. Bd2 {[%emt 0:01:29]} a6 {[%emt 0:01:47]} 11. O-O-O {[%emt 0:00:21]} Ke7 {[%emt 0:00:17]} 12. Rhe1 {[%emt 0:16:19]} b5 {[%emt 0:06:48]} 13. Be3 {[%emt 0:02:19]} Bxe3+ {[%emt 0:03:15]} 14. Rxe3 {[%emt 0:00:05]} Rad8 {[%emt 0:05:14]} 15. Nf2 {[%emt 0:01:06]} Nd4 {[%emt 0:04:46]} 16. Nd3 {[%emt 0:03:12]} Nd7 {[%emt 0:01:09]} 17. Ne2 {[%emt 0:40:50]} c5 {[%emt 0:06:11]} 18. b3 {[%emt 0:00:56]} g5 {[%emt 0:04:55]} 19. Nb2 {[%emt 0:03:03]} h5 {[%emt 0:06:02]} 20. c3 {[%emt 0:03:06]} Nc6 {[%emt 0:05:50]} 21. Red3 {[%emt 0:01:49]} Nf6 {[%emt 0:06:52]} 22. Rxd8 {[%emt 0:00:15]} Rxd8 {[%emt 0:00:04]} 23. Rxd8 {[%emt 0:00:02]} Nxd8 {[%emt 0:00:11]} 24. Nd3 {[%emt 0:00:11]} Kd6 {[%emt 0:00:05]} 25. Kd2 {[%emt 0:03:31]} c4 {[%emt 0:04:14]} 26. Nb2 {[%emt 0:00:14]} Kc5 {[%emt 0:06:21]} 27. Ke3 {[%emt 0:02:11]} a5 {[%emt 0:07:16]} 28. g3 {[%emt 0:00:38]} Nf7 {[%emt 0:01:50]} 29. Ng1 {[%emt 0:05:04]} g4 {[%emt 0:03:58]} 30. f4 {[%emt 0:01:23]} exf4+ {[%emt 0:02:04]} 31. gxf4 {[%emt 0:00:15]} Nd6 {[%emt 0:01:25]} 32. Ne2 {[%emt 0:03:53]} cxb3 {[%emt 0:03:04]} 33. axb3 {[%emt 0:00:04]} Nfxe4 {[%emt 0:01:32]} 34. Nd3+ {[%emt 0:02:12]} Kd5 {[%emt 0:00:32]} 35. Nb2 {[%emt 0:01:00]} Nf5+ {[%emt 0:00:47]} 36. Kd3 {[%emt 0:00:05]} Nc5+ {[%emt 0:00:00]} 37. Kc2 {[%emt 0:00:06]} Ne3+ {[%emt 0:00:00]} 38. Kd2 {[%emt 0:00:11]} Nf1+ {[%emt 0:00:00]} 39. Ke1 {[%emt 0:00:00]} Nxh2 {[%emt 0:00:00]} 40. b4 {[%emt 0:00:00]} axb4 {[%emt 0:00:00]} 41. cxb4 Ne4 {[%emt 0:04:29]} 42. f5 {[%emt 0:00:58]} exf5 {[%emt 0:03:29]} 43. Nf4+ {[%emt 0:00:05]} Kd4 {[%emt 0:01:59]} 44. Nxh5 {[%emt 0:00:06]} Ke3 {[%emt 0:07:08]} 45. Nd1+ {[%emt 0:00:59]} Kf3 {[%emt 0:00:18]} 46. Ng7 {[%emt 0:00:10]} f4 {[%emt 0:01:50]} 47. Nf5 {[%emt 0:00:04]} g3 {[%emt 0:00:47]} 48. Nd4+ {[%emt 0:00:32]} Kg2 {[%emt 0:00:15]} 49. Ne2 {[%emt 0:00:31]} Nf3# {[%emt 0:00:08]} 0-1

[Event "Polish Youth 1st League 2022"]
[Site "Lublin"]
[Date "2022.07.01"]
[Round "7.14"]
[White "Lysakowski, Piotr"]
[Black "Bednarczyk, Mateusz"]
[Result "1-0"]
[ECO "E81"]
[WhiteElo "1542"]
[BlackElo "1701"]
[Annotator "NA RC"]
[PlyCount "128"]
[EventDate "2022.06.24"]
[EventType "team-tourn"]
[EventCountry "POL"]
[SourceTitle "playchess.com"]
[Source "ChessBase"]
[SourceQuality "1"]
[TimeControl "40/5400+30:1800+30"]

1. d4 {[%emt 0:00:01]} Nf6 {[%emt 0:00:08]} 2. c4 {[%emt 0:00:08]} g6 {[%emt 0:00:05]} 3. Nc3 {[%emt 0:00:05]} Bg7 {[%emt 0:00:05]} 4. e4 {[%emt 0:00:06]} d6 {[%emt 0:00:04]} 5. f3 {[%emt 0:00:11]} O-O 6. Be3 {[%emt 0:00:10]} Nbd7 {[%emt 0:00:18]} 7. Qd2 {[%emt 0:00:56]} c5 {[%emt 0:00:07]} 8. Nge2 {[%emt 0:08:55]} a6 {[%emt 0:00:50]} 9. dxc5 {[%emt 0:01:49]} dxc5 {[%emt 0:01:16]} 10. Rd1 {[%emt 0:03:22]} Qc7 {[%emt 0:12:59]} 11. Nf4 {[%emt 0:04:59]} e6 {[%emt 0:03:06]} 12. Nd3 {[%emt 0:18:04]} b5 {[%emt 0:19:50]} 13. cxb5 {[%emt 0:10:03]} axb5 {[%emt 0:00:44]} 14. Nxb5 {[%emt 0:07:34]} Qc6 {[%emt 0:00:46]} 15. Na3 {[%emt 0:11:05]} Ba6 {[%emt 0:08:42]} 16. Rc1 {[%emt 0:05:01]} Bxd3 {[%emt 0:19:15]} 17. Bxd3 {[%emt 0:02:07]} Rfd8 {[%emt 0:00:10]} 18. Qc2 {[%emt 0:08:44]} Ne5 {[%emt 0:14:56]} 19. Be2 {[%emt 0:05:18]} Ned7 {[%emt 0:09:41]} 20. O-O {[%emt 0:04:11]} Rdc8 {[%emt 0:01:29]} 21. Rfd1 {[%emt 0:01:18]} Qb7 {[%emt 0:03:30]} 22. Nb5 {[%emt 0:04:06]} Ne8 {[%emt 0:00:31]} 23. a4 {[%emt 0:00:46]} Nb6 {[%emt 0:00:48]} 24. b3 {[%emt 0:00:34]} c4 {[%emt 0:02:25]} 25. Bxc4 {[%emt 0:01:55]} Rxa4 {[%emt 0:00:41]} 26. bxa4 {[%emt 0:01:21]} Rxc4 {[%emt 0:00:18]} 27. Qf2 {[%emt 0:00:30]} Rxc1 {[%emt 0:00:15]} 28. Rxc1 {[%emt 0:00:04]} Nxa4 {[%emt 0:00:07]} 29. Nd4 {[%emt 0:00:38]} Nd6 {[%emt 0:00:39]} 30. Ne2 {[%emt 0:00:51]} Nb2 {[%emt 0:01:07]} 31. Rf1 {[%emt 0:00:33]} Nd3 {[%emt 0:00:14]} 32. Qh4 {[%emt 0:00:10]} Qc8 {[%emt 0:00:53]} 33. Qg3 {[%emt 0:00:51]} Be5 {[%emt 0:00:18]} 34. Qh4 {[%emt 0:00:26]} Bg7 {[%emt 0:00:13]} 35. Nc1 {[%emt 0:00:32]} Nc5 {[%emt 0:00:54]} 36. Rd1 {[%emt 0:00:30]} Ncb7 {[%emt 0:00:25]} 37. Kh1 {[%emt 0:00:33]} Qc2 {[%emt 0:00:30]} 38. Qe1 {[%emt 0:00:25]} Nc4 {[%emt 0:00:22]} 39. Bf2 {[%emt 0:00:26]} Bc3 {[%emt 0:00:40]} 40. Qe2 {[%emt 0:00:00]} Qa4 {[%emt 0:00:00]} 41. Nd3 {[%emt 0:04:31]} Ne5 {[%emt 0:09:48]} 42. Nc5 {[%emt 0:05:38]} Nxc5 {[%emt 0:00:38]} 43. Bxc5 {[%emt 0:00:18]} Qa5 {[%emt 0:01:59]} 44. Bd4 {[%emt 0:02:38]} Bxd4 {[%emt 0:00:51]} 45. Rxd4 {[%emt 0:00:01]} Nc6 {[%emt 0:01:15]} 46. Rd1 {[%emt 0:00:34]} e5 {[%emt 0:01:49]} 47. Qd2 {[%emt 0:01:02]} Qa4 {[%emt 0:05:36]} 48. h3 {[%emt 0:02:25]} Nd4 {[%emt 0:06:24]} 49. f4 Ne6 {[%emt 0:02:41]} 50. f5 {[%emt 0:05:26]} Nd4 {[%emt 0:00:52]} 51. Rf1 {[%emt 0:03:12]} Qb5 {[%emt 0:01:45]} 52. Qf2 {[%emt 0:01:14]} g5 {[%emt 0:01:57]} 53. Ra1 {[%emt 0:04:16]} Qb7 {[%emt 0:00:24]} 54. Qg3 {[%emt 0:01:45]} h6 {[%emt 0:00:28]} 55. Qxe5 {[%emt 0:00:28]} Ne2 {[%emt 0:01:00]} 56. f6 {[%emt 0:01:50]} Qxe4 {[%emt 0:00:40]} 57. Qb8+ {[%emt 0:01:30]} Kh7 {[%emt 0:00:04]} 58. Qf8 {[%emt 0:02:03]} Kg6 {[%emt 0:01:17]} 59. Qg7+ {[%emt 0:00:26]} Kh5 {[%emt 0:00:29]} 60. Qxf7+ {[%emt 0:00:53]} Kh4 {[%emt 0:00:01]} 61. Qb3 {[%emt 0:00:55]} Ng3+ {[%emt 0:00:41]} 62. Kh2 {[%emt 0:00:23]} Qf4 {[%emt 0:00:48]} 63. Qf3 {[%emt 0:00:42]} Nf1+ {[%emt 0:00:23]} 64. Kg1 {[%emt 0:00:16]} Qd4+ {[%emt 0:00:23]} 1-0

[Event "Polish Youth 1st League 2022"]
[Site "Lublin"]
[Date "2022.07.01"]
[Round "7.15"]
[White "Nagly, Wojciech"]
[Black "Musial, Igor"]
[Result "0-1"]
[ECO "A48"]
[WhiteElo "1464"]
[BlackElo "1699"]
[Annotator "NA RC"]
[PlyCount "82"]
[EventDate "2022.06.24"]
[EventType "team-tourn"]
[EventCountry "POL"]
[SourceTitle "playchess.com"]
[Source "ChessBase"]
[SourceQuality "1"]
[TimeControl "40/5400+30:1800+30"]

1. d4 {[%emt 0:00:03]} Nf6 {[%emt 0:00:07]} 2. Nf3 {[%emt 0:00:07]} g6 {[%emt 0:00:09]} 3. e3 {[%emt 0:00:07]} Bg7 {[%emt 0:00:37]} 4. Be2 {[%emt 0:00:18]} O-O {[%emt 0:00:32]} 5. O-O {[%emt 0:00:18]} d6 {[%emt 0:00:43]} 6. c4 {[%emt 0:00:10]} Nbd7 {[%emt 0:00:03]} 7. Nc3 {[%emt 0:00:14]} e5 {[%emt 0:00:29]} 8. Qc2 {[%emt 0:00:52]} Re8 {[%emt 0:00:27]} 9. b3 {[%emt 0:00:40]} e4 {[%emt 0:00:41]} 10. Nd2 {[%emt 0:00:06]} Qe7 {[%emt 0:00:05]} 11. b4 {[%emt 0:01:46]} Nf8 {[%emt 0:00:53]} 12. a4 {[%emt 0:00:46]} h5 {[%emt 0:02:17]} 13. b5 {[%emt 0:04:05]} h4 {[%emt 0:07:32]} 14. Ba3 {[%emt 0:02:40]} c6 {[%emt 0:38:58]} 15. Na2 {[%emt 0:34:58]} h3 {[%emt 0:14:01]} 16. g3 {[%emt 0:00:30]} Bg4 {[%emt 0:02:37]} 17. Bxg4 {[%emt 0:09:11]} Nxg4 {[%emt 0:00:04]} 18. bxc6 {[%emt 0:00:41]} bxc6 {[%emt 0:00:18]} 19. Rab1 {[%emt 0:04:20]} Nh7 {[%emt 0:02:26]} 20. Nb4 {[%emt 0:02:22]} Qd7 {[%emt 0:01:00]} 21. Nxe4 {[%emt 0:10:40]} a5 {[%emt 0:03:42]} 22. Na2 {[%emt 0:02:04]} Qf5 {[%emt 0:00:34]} 23. f3 {[%emt 0:10:03]} Nxe3 {[%emt 0:00:24]} 24. Qb3 {[%emt 0:01:25]} Nxf1 {[%emt 0:02:56]} 25. Nxd6 {[%emt 0:00:30]} Nd2 {[%emt 0:05:52]} 26. Nxf5 {[%emt 0:01:44]} Nxb3 {[%emt 0:00:08]} 27. Nxg7 {[%emt 0:00:16]} Re2 {[%emt 0:07:48]} 28. Rxb3 {[%emt 0:02:08]} Rxa2 {[%emt 0:01:34]} 29. Bb2 {[%emt 0:00:09]} Kxg7 {[%emt 0:00:40]} 30. d5+ {[%emt 0:00:08]} Kg8 {[%emt 0:02:06]} 31. dxc6 {[%emt 0:00:34]} Rc8 {[%emt 0:01:01]} 32. Rb6 {[%emt 0:01:09]} Rxa4 {[%emt 0:00:58]} 33. c5 {[%emt 0:07:33]} Rc4 {[%emt 0:02:13]} 34. Ba3 {[%emt 0:01:01]} Rc3 {[%emt 0:00:27]} 35. c7 {[%emt 0:00:56]} Rxc7 {[%emt 0:00:16]} 36. Rb8+ {[%emt 0:00:06]} Nf8 {[%emt 0:00:04]} 37. Bb2 {[%emt 0:00:16]} R3xc5 {[%emt 0:00:10]} 38. Ba3 {[%emt 0:00:35]} Rc8 {[%emt 0:00:14]} 39. Rb6 {[%emt 0:00:09]} Rc2 {[%emt 0:00:24]} 40. Rb5 {[%emt 0:00:00]} Ra2 {[%emt 0:00:00]} 41. Rxa5 {[%emt 0:00:22]} Rb8 {[%emt 0:00:21]} 0-1

[Event "Polish Youth 1st League 2022"]
[Site "Lublin"]
[Date "2022.07.01"]
[Round "7.16"]
[White "Rozek, Michal"]
[Black "Gibala, Adam"]
[Result "1-0"]
[ECO "B31"]
[WhiteElo "1533"]
[BlackElo "1516"]
[Annotator "NA RC"]
[PlyCount "85"]
[EventDate "2022.06.24"]
[EventType "team-tourn"]
[EventCountry "POL"]
[SourceTitle "playchess.com"]
[Source "ChessBase"]
[SourceQuality "1"]
[TimeControl "40/5400+30:1800+30"]

1. e4 {[%emt 0:00:04]} c5 {[%emt 0:00:15]} 2. Nf3 {[%emt 0:00:09]} Nc6 {[%emt 0:00:04]} 3. Bb5 {[%emt 0:00:09]} g6 {[%emt 0:00:03]} 4. Bxc6 {[%emt 0:00:11]} dxc6 {[%emt 0:00:06]} 5. d3 {[%emt 0:00:25]} Bg7 {[%emt 0:00:09]} 6. h3 {[%emt 0:00:25]} e5 {[%emt 0:00:43]} 7. Be3 {[%emt 0:01:34]} Qe7 {[%emt 0:01:25]} 8. Qd2 {[%emt 0:01:30]} Nf6 {[%emt 0:00:28]} 9. Nc3 {[%emt 0:02:19]} O-O {[%emt 0:01:57]} 10. Bh6 {[%emt 0:03:28]} Re8 {[%emt 0:04:50]} 11. Bxg7 {[%emt 0:01:17]} Kxg7 {[%emt 0:00:07]} 12. g4 {[%emt 0:09:40]} b5 {[%emt 0:01:18]} 13. Nh2 {[%emt 0:04:57]} Nd7 {[%emt 0:03:51]} 14. g5 {[%emt 0:07:25]} Nf8 {[%emt 0:01:09]} 15. h4 {[%emt 0:01:59]} Ne6 {[%emt 0:02:06]} 16. O-O-O {[%emt 0:02:46]} b4 {[%emt 0:01:38]} 17. Na4 {[%emt 0:04:50]} Nf4 {[%emt 0:00:12]} 18. f3 {[%emt 0:03:13]} Be6 {[%emt 0:11:35]} 19. b3 {[%emt 0:03:42]} Qd6 {[%emt 0:05:35]} 20. Kb1 {[%emt 0:04:50]} Rad8 {[%emt 0:01:26]} 21. Qe1 {[%emt 0:11:14]} Qd4 {[%emt 0:02:55]} 22. Ng4 {[%emt 0:02:25]} Bxg4 {[%emt 0:01:21]} 23. fxg4 {[%emt 0:00:09]} Rd7 {[%emt 0:03:43]} 24. h5 {[%emt 0:02:30]} Red8 {[%emt 0:02:06]} 25. Qh4 {[%emt 0:06:54]} Kg8 {[%emt 0:00:08]} 26. Rdf1 {[%emt 0:04:40]} c4 {[%emt 0:04:09]} 27. bxc4 {[%emt 0:04:45]} a5 {[%emt 0:01:11]} 28. Qf2 {[%emt 0:00:43]} Qxf2 {[%emt 0:05:31]} 29. Rxf2 {[%emt 0:00:06]} Ne6 {[%emt 0:00:11]} 30. Kb2 {[%emt 0:05:34]} Kg7 {[%emt 0:07:29]} 31. h6+ {[%emt 0:01:23]} Kg8 {[%emt 0:01:10]} 32. Rf6 {[%emt 0:01:39]} Rc7 33. Rhf1 {[%emt 0:01:43]} Rb8 {[%emt 0:03:55]} 34. R1f2 {[%emt 0:05:26]} Rd8 {[%emt 0:03:46]} 35. Rd2 {[%emt 0:00:43]} Rd6 {[%emt 0:11:32]} 36. Nc5 {[%emt 0:01:42]} Re7 {[%emt 0:02:38]} 37. Rdf2 {[%emt 0:00:32]} Rd8 {[%emt 0:00:25]} 38. Nxe6 {[%emt 0:00:34]} fxe6 {[%emt 0:00:13]} 39. Kb3 {[%emt 0:00:32]} c5 {[%emt 0:00:09]} 40. Ka4 {[%emt 0:00:00]} Rb8 {[%emt 0:00:00]} 41. Rf1 {[%emt 0:02:04]} Ree8 {[%emt 0:00:19]} 42. Rf7 {[%emt 0:00:46]} Ra8 {[%emt 0:00:39]} 43. Rg7+ {[%emt 0:00:26]} 1-0

[Event "Polish Youth 1st League 2022"]
[Site "Lublin"]
[Date "2022.07.01"]
[Round "7.17"]
[White "Starosta, Martyna"]
[Black "Mroz, Lena"]
[Result "1-0"]
[ECO "A03"]
[WhiteElo "1918"]
[BlackElo "1719"]
[Annotator "NA RC"]
[PlyCount "65"]
[EventDate "2022.06.24"]
[EventType "team-tourn"]
[EventCountry "POL"]
[SourceTitle "playchess.com"]
[Source "ChessBase"]
[SourceQuality "1"]
[TimeControl "40/5400+30:1800+30"]

1. f4 {[%emt 0:00:02]} d5 {[%emt 0:00:16]} 2. b3 {[%emt 0:00:12]} c5 {[%emt 0:00:40]} 3. Nf3 {[%emt 0:00:06]} Nf6 {[%emt 0:00:42]} 4. Bb2 {[%emt 0:00:08]} e6 {[%emt 0:03:22]} 5. e3 {[%emt 0:01:08]} Bd6 {[%emt 0:02:04]} 6. Bb5+ {[%emt 0:02:10]} Bd7 {[%emt 0:00:37]} 7. a4 {[%emt 0:02:22]} a6 {[%emt 0:03:37]} 8. Bxd7+ {[%emt 0:05:44]} Nbxd7 {[%emt 0:00:20]} 9. O-O {[%emt 0:00:10]} O-O {[%emt 0:00:59]} 10. Qe1 {[%emt 0:10:48]} Re8 {[%emt 0:06:33]} 11. Qg3 {[%emt 0:12:54]} Qc7 {[%emt 0:11:59]} 12. Qh3 {[%emt 0:09:46]} e5 {[%emt 0:10:34]} 13. g4 {[%emt 0:03:37]} (13. fxe5 $1 $11 Nxe5 14. Nh4) 13... Re7 {[%emt 0:07:40]} 14. g5 {[%emt 0:05:22]} Ne8 {[%emt 0:01:23]} 15. Nc3 {[%emt 0:02:08]} Qc6 {[%emt 0:04:10]} 16. f5 {[%emt 0:04:06]} f6 {[%emt 0:10:58]} 17. d3 {[%emt 0:06:11]} (17. g6 $5 {[%cal Rh3h7]} Nf8 18. d3 $11) 17... Nc7 {[%emt 0:06:32]} 18. Rae1 {[%emt 0:04:13]} b5 {[%emt 0:07:04]} 19. axb5 {[%emt 0:01:13]} axb5 {[%emt 0:00:14]} 20. e4 {[%emt 0:00:33] [#]} d4 {[%emt 0:02:03]} ({Better is} 20... c4 $1 $17 21. Re2 (21. g6 h6 $17) 21... Qc5+ 22. Kh1 d4) 21. Nd5 $17 {[%emt 0:04:16]} (21. Nd1 $11 {remains equal.}) 21... Nxd5 {[%emt 0:09:41]} 22. exd5 {[%emt 0:00:20]} Qxd5 {[%emt 0:00:24]} 23. Re4 {[%emt 0:00:15]} fxg5 {[%emt 0:02:50]} 24. Nxg5 {[%emt 0:00:06]} Nf6 {[%emt 0:01:40]} 25. Rh4 {[%emt 0:00:31]} h6 {[%emt 0:03:42]} 26. Ne4 {[%emt 0:00:22]} Rf7 {[%emt 0:01:10]} 27. Qg2 {[%emt 0:02:53]} Nxe4 {[%emt 0:02:03]} 28. dxe4 {[%emt 0:00:07]} Qb7 {[%emt 0:00:38]} 29. Rxh6 {[%emt 0:00:36]} Bf8 {[%emt 0:00:31]} 30. Qg6 {[%emt 0:07:45]} Rc7 {[%emt 0:00:25]} 31. f6 {[%emt 0:00:49]} Bd6 {[%emt 0:00:34]} 32. Qh7+ {[%emt 0:00:34]} Kf8 {[%emt 0:00:22]} 33. fxg7+ {[%emt 0:00:10]} 1-0

[Event "Polish Youth 1st League 2022"]
[Site "Lublin"]
[Date "2022.07.01"]
[Round "7.18"]
[White "Lajdamik, Kinga"]
[Black "Kulczycka, Zofia"]
[Result "1/2-1/2"]
[ECO "B00"]
[WhiteElo "1308"]
[BlackElo "1564"]
[Annotator "NA RC"]
[PlyCount "97"]
[EventDate "2022.06.24"]
[EventType "team-tourn"]
[EventCountry "POL"]
[SourceTitle "playchess.com"]
[Source "ChessBase"]
[SourceQuality "1"]
[TimeControl "40/5400+30:1800+30"]

1. e4 {[%emt 0:00:01]} d6 {[%emt 0:00:12]} 2. d4 {[%emt 0:00:14]} Nf6 {[%emt 0:00:08]} 3. Bd3 {[%emt 0:00:22]} c6 {[%emt 0:01:11]} 4. c4 {[%emt 0:08:15]} e5 {[%emt 0:08:19]} 5. dxe5 {[%emt 0:10:45]} dxe5 {[%emt 0:00:10]} 6. Ne2 {[%emt 0:03:31]} Nbd7 {[%emt 0:03:05]} 7. Be3 {[%emt 0:06:52]} Nc5 {[%emt 0:07:39]} 8. Bxc5 {[%emt 0:00:27]} Bxc5 {[%emt 0:00:07]} 9. O-O {[%emt 0:01:37]} O-O {[%emt 0:03:06]} 10. Nbc3 {[%emt 0:01:59]} Bg4 {[%emt 0:06:43]} 11. Qc2 {[%emt 0:04:01]} Bxe2 {[%emt 0:04:36]} 12. Nxe2 {[%emt 0:01:04]} Qe7 {[%emt 0:02:05]} 13. Ng3 {[%emt 0:02:05]} g6 {[%emt 0:02:09]} 14. Kh1 {[%emt 0:01:56]} Rfd8 {[%emt 0:03:20]} 15. Rad1 {[%emt 0:01:58]} h5 {[%emt 0:04:54]} 16. h3 {[%emt 0:12:21]} Rd7 {[%emt 0:05:33]} 17. a3 {[%emt 0:07:01]} a5 {[%emt 0:00:38]} 18. Ne2 {[%emt 0:02:36]} Rad8 {[%emt 0:01:22]} 19. Nc3 {[%emt 0:06:08]} h4 {[%emt 0:04:45]} 20. Qe2 {[%emt 0:03:03]} Nh5 {[%emt 0:02:38]} 21. Qc2 {[%emt 0:03:48]} Nf4 {[%emt 0:05:07]} 22. Be2 {[%emt 0:01:22]} Qg5 {[%emt 0:01:13]} 23. Bf3 {[%emt 0:03:20]} Rd4 {[%emt 0:06:25]} 24. b3 {[%emt 0:07:50]} Bxa3 {[%emt 0:09:51]} 25. Ne2 {[%emt 0:00:53]} Nxe2 {[%emt 0:00:50]} 26. Qxe2 {[%emt 0:03:51]} Rd2 {[%emt 0:02:32]} 27. Rxd2 {[%emt 0:00:24]} Rxd2 {[%emt 0:00:14]} 28. Qe1 {[%emt 0:00:10]} Bb4 {[%emt 0:01:10]} 29. Qc1 {[%emt 0:01:11]} Qf4 {[%emt 0:02:33]} 30. Qb1 {[%emt 0:01:01]} Bc5 {[%emt 0:00:48]} 31. Qe1 {[%emt 0:00:54]} Rb2 {[%emt 0:01:42]} 32. Qxa5 {[%emt 0:03:55]} Rxf2 {[%emt 0:01:58]} 33. Rxf2 {[%emt 0:00:01]} Qc1+ {[%emt 0:02:24]} 34. Kh2 {[%emt 0:00:15]} Bxf2 {[%emt 0:00:08]} 35. Qd8+ {[%emt 0:00:06]} Kg7 {[%emt 0:00:45]} 36. Qd1 {[%emt 0:00:09]} Qf4+ {[%emt 0:00:50]} 37. Kh1 {[%emt 0:00:10]} Bd4 {[%emt 0:01:04]} 38. Qe1 {[%emt 0:00:34]} f5 {[%emt 0:02:48]} 39. b4 {[%emt 0:01:26]} Be3 {[%emt 0:02:23]} 40. Qb1 {[%emt 0:00:00]} Bd4 {[%emt 0:00:00]} 41. b5 {[%emt 0:03:28]} cxb5 {[%emt 0:06:06]} 42. cxb5 {[%emt 0:00:13]} Qd2 {[%emt 0:01:34]} 43. exf5 {[%emt 0:08:59]} gxf5 {[%emt 0:01:19]} 44. Bxb7 {[%emt 0:00:30]} e4 {[%emt 0:03:20]} 45. b6 {[%emt 0:01:12]} Qe3 {[%emt 0:10:28]} 46. Bc8 {[%emt 0:03:45]} Bxb6 {[%emt 0:01:20]} 47. Bxf5 {[%emt 0:01:22]} Qd4 {[%emt 0:02:30]} 48. Bxe4 {[%emt 0:01:01]} Qe3 {[%emt 0:02:11]} 49. Bf3 {[%emt 0:02:36]} 1/2-1/2